bitfinex/quotes_ETHUSD_20250406
["timestamp","ask_amount","ask_price","bid_price","bid_amount"]
[1743960476387,0.90807939,1699.9,1699.5,4.11871]
[1743960476711,0.90807939,1699.9,1698.1,46.50517]
[1743960476712,0.4035865,1699.8,1698.0,4.12244]
[1743960476911,0.4035865,1699.8,1696.8,21.17837]
[1743960476912,4.5218365,1699.8,1699.0,4.11992]
[1743960477116,4.5218365,1699.8,1698.2,3.0]
[1743960477117,0.85577015,1699.7,1698.5,4.12128]
[1743960477448,4.11954,1699.3,1698.5,4.12126]
[1743960477616,7.12001,1699.1,1698.4,4.12137]
[1743960477815,0.4035865,1699.0,1698.0,4.12249]
[1743960478015,0.4035865,1699.0,1698.1,4.12225]
[1743960478220,0.50449289,1699.2,1698.6,4.121]
[1743960478419,3.50449289,1699.2,1697.9,46.49363]
[1743960478587,3.0,1699.8,1698.1,4.12225]
[1743960478912,0.40011381,1699.1,1698.7,4.12066]
[1743960479117,0.40011381,1699.1,1698.4,4.12151]
[1743960479316,0.40011381,1699.0,1698.8,4.12042]
[1743960479533,3.0,1697.9,1696.2,1.6191]
[1743960479707,0.55,1697.5,1696.3,4.12655]
[1743960479879,0.40011381,1697.4,1696.4,9.33818515]
[1743960480080,0.40011381,1697.4,1697.3,4.12419]
[1743960480386,4.12014,1699.0,1698.2,4.12183]
[1743960480725,4.12014,1699.0,1698.0,4.12237]
[1743960480726,4.1207,1698.8,1698.0,4.12237]
[1743960481020,4.12386,1697.5,1696.1,4.12711]
[1743960481226,42.37,1697.7,1695.9,4.1276]
[1743960481435,3.0,1698.2,1696.1,4.12711]
[1743960481635,46.49146,1698.5,1696.6,4.12589]
[1743960481838,4.12616,1696.5,1694.8,1.6191]
[1743960482039,1.5941,1696.8,1694.8,1.6191]
[1743960482243,3.0,1696.3,1694.0,1.6191]
[1743960482397,10.50915875,1696.7,1694.0,1.6191]
[1743960482398,4.12772,1695.9,1695.1,4.1294]
[1743960482742,4.12772,1695.9,1692.9,4.13488]
[1743960482743,0.55,1695.4,1692.9,4.13488]
[1743960482938,0.10640168,1695.3,1693.8,4.13254]
[1743960483165,3.0,1695.0,1693.3,4.1338]
[1743960483296,0.10640168,1694.9,1693.2,42.394]
[1743960483499,0.55,1695.4,1694.5,4.13078]
[1743960483840,1.5941,1696.8,1696.1,4.12711]
[1743960484049,1.5941,1696.8,1696.5,4.12614]
[1743960484634,4.12323,1697.7,1695.6,4.12827]
[1743960484842,0.412323,1697.6,1697.3,4.12396]
[1743960484993,1.5941,1697.9,1697.2,4.12432]
[1743960485195,1.5941,1697.9,1697.2,4.12429]
[1743960485420,1.5941,1697.9,1695.9,0.55]
[1743960485631,1.5941,1697.9,1697.4,4.12391]
[1743960485844,4.12547,1696.8,1694.9,1.6191]
[1743960486002,42.394,1697.3,1696.8,4.12524]
[1743960486208,46.51687,1697.9,1697.0,4.1247]
[1743960486498,6.0,1698.3,1696.2,3.0]
[1743960486499,4.12193,1698.3,1697.5,4.12357]
[1743960486803,4.78187519,1698.4,1698.1,4.12222]
[1743960486998,4.78187519,1698.4,1698.3,4.12176]
[1743960487441,4.76862036,1698.4,1698.3,4.12176]
[1743960487597,3.6e-07,1698.4,1698.3,4.12176]
[1743960487798,3.28350636,1698.6,1698.5,4.12128]
[1743960488333,6.36e-06,1698.6,1698.5,4.12128]
[1743960488730,6.36e-06,1698.6,1698.2,8.2437]
[1743960488930,6.36e-06,1698.6,1698.5,4.12128]
[1743960489130,6.36e-06,1698.6,1698.4,4.12148]
[1743960489331,0.10640168,1699.4,1698.5,4.12128]
[1743960489639,4.22572168,1699.4,1698.5,4.12128]
[1743960489839,3.42257217,1699.3,1698.5,4.12128]
[1743960490078,4.54192217,1699.3,1698.3,4.12156]
[1743960490224,4.54211217,1699.3,1697.8,4.12298]
[1743960490425,0.55,1699.2,1698.3,4.12176]
[1743960490725,4.12226,1698.1,1696.6,0.29497229]
[1743960490938,7.534756,1698.0,1697.0,4.12488]
[1743960491142,0.412226,1698.0,1696.3,46.81454]
[1743960491474,1.5941,1698.3,1696.3,42.388]
[1743960491657,1.5941,1698.3,1697.8,4.12275]
[1743960491824,0.55,1698.2,1697.1,4.12468]
[1743960492030,1.5941,1698.3,1697.9,4.12257]
[1743960492224,42.49840168,1699.1,1698.2,4.12201]
[1743960492533,1.6098,1699.0,1697.5,4.12371]
[1743960492760,1.6098,1699.0,1698.7,4.1206]
[1743960492957,1.6098,1699.9,1698.9,4.12031]
[1743960493140,1.6098,1699.9,1698.8,4.12049]
[1743960493463,1.6098,1699.9,1699.8,4.11813]
[1743960493822,1.6098,1700.5,1699.3,4.11931]
[1743960494029,1.6098,1700.5,1699.6,4.11849]
[1743960494265,1.6098,1700.5,1698.7,4.67079]
[1743960494471,1.6098,1700.5,1699.9,4.11775]
[1743960494629,1.6098,1700.5,1699.8,4.11794]
[1743960495027,1.6098,1700.5,1699.6,4.1185]
[1743960495262,1.6098,1700.5,1699.8,4.11811]
[1743960495263,5.72635,1700.5,1699.8,4.11811]
[1743960495445,1.6098,1700.5,1699.0,3.0]
[1743960495648,1.6098,1700.5,1700.2,4.11707]
[1743960495968,1.6098,1700.5,1699.9,4.11769]
[1743960496167,1.9932556,1700.5,1700.2,4.11715]
[1743960496383,8.48662247,1700.4,1700.2,4.11704]
[1743960496586,8.48662247,1700.4,1700.3,4.11692]
[1743960496882,2.22475598,1700.6,1700.0,4.11758]
[1743960496883,0.13863192,1701.5,1700.0,4.11758]
[1743960497042,4.1153,1701.0,1699.5,42.377]
[1743960497244,0.41153,1700.9,1699.3,4.11934]
[1743960497549,0.41153,1700.9,1700.5,4.11626]
[1743960497777,0.41153,1700.9,1700.2,4.11696]
[1743960497980,0.41153,1700.9,1699.3,4.11934]
[1743960498181,5.70679,1700.6,1699.7,4.11815]
[1743960498337,1.5904,1700.6,1700.3,4.11691]
[1743960498754,1.5904,1700.6,1700.4,4.11643]
[1743960499246,3.42208279,1700.1,1700.0,4.11764]
[1743960499874,3.42208279,1700.1,1699.9,4.11782]
[1743960500045,3.37208279,1700.1,1699.9,4.11782]
[1743960500256,3.37208279,1700.1,1700.0,4.11764]
[1743960500687,1.5904,1700.6,1698.8,42.844079]
[1743960500981,1.5904,1700.6,1700.1,4.11739]
[1743960501138,1.5904,1700.6,1700.2,8.23412]
[1743960501488,43.9663,1701.0,1699.4,4.1191]
[1743960501640,7.60773,1700.8,1700.1,4.11729]
[1743960501843,7.39663,1700.9,1700.1,4.11723]
[1743960502088,7.39663,1700.9,1700.3,4.11671]
[1743960502381,48.08155,1701.0,1700.5,4.11636]
[1743960502382,2.27953504,1700.7,1700.5,4.11636]
[1743960502561,2.27953504,1700.7,1700.6,4.11619]
[1743960502951,2.27953504,1700.7,1700.5,4.11636]
[1743960503144,2.27953504,1700.7,1697.6,16.0]
[1743960503145,2.27953504,1700.7,1699.3,4.11934]
[1743960503481,1.5893,1702.0,1701.4,4.11413]
[1743960503644,1.5893,1702.0,1701.3,4.11431]
[1743960503945,4.5893,1702.0,1701.4,4.11425]
[1743960504145,2.459507,1702.0,1699.5,42.344]
[1743960504341,4.11305,1701.9,1701.1,4.11497]
[1743960504581,2.28075304,1701.3,1701.2,4.11474]
[1743960505139,2.28075304,1701.3,1701.1,4.11484]
[1743960505344,2.28075304,1701.3,1701.1,4.1148]
[1743960505557,2.28075304,1701.3,1701.2,4.11474]
[1743960506751,3.04e-06,1701.3,1701.2,4.11474]
[1743960508790,3.0,1701.9,1701.2,4.11462]
[1743960508995,4.5893,1702.0,1700.7,4.11595]
[1743960509203,4.11365,1701.7,1700.5,4.11643]
[1743960509402,3.0,1701.6,1700.3,4.11671]
[1743960509546,4.11465,1701.3,1700.1,4.1174]
[1743960509895,5.70491,1700.9,1700.1,4.11721]
[1743960510088,1.5893,1700.9,1698.9,9.78542926]
[1743960510246,4.5893,1700.9,1700.2,4.11703]
[1743960510449,1.5893,1700.9,1700.4,4.11655]
[1743960510952,1.5893,1700.9,1699.6,4.1186]
[1743960511252,2.04823,1700.9,1700.4,4.11654]
[1743960511447,2.04823,1700.9,1700.2,4.11699]
[1743960511781,42.325,1701.3,1699.8,4.11807]
[1743960511782,42.325,1701.3,1700.8,4.11571]
[1743960512080,1.5972,1701.4,1701.1,4.11477]
[1743960512281,1.5972,1701.4,1701.1,4.11494]
[1743960512502,1.5972,1701.4,1701.1,4.11487]
[1743960512684,1.5972,1701.4,1700.5,4.11634]
[1743960512852,1.5972,1701.4,1700.6,4.11618]
[1743960513051,2.05692,1701.4,1700.9,4.11532]
[1743960513384,4.11522,1701.0,1700.4,4.11648]
[1743960513681,3.0,1701.1,1699.6,43.9127]
[1743960513882,7.41521,1701.1,1700.4,4.11653]
[1743960514082,0.40612195,1701.0,1700.5,4.11629]
[1743960514282,4.52169195,1700.9,1700.2,4.11701]
[1743960514585,0.91501257,1700.8,1700.3,4.11691]
[1743960514790,0.91501257,1700.8,1698.2,2.91044972]
[1743960514955,0.91501257,1700.8,1698.6,1.5877]
[1743960514956,2.1472,1700.4,1698.6,1.5877]
[1743960515157,42.322,1700.3,1699.1,4.11978]
[1743960515359,7.11725,1700.2,1699.4,4.11909]
[1743960515598,0.711725,1700.1,1699.6,4.11844]
[1743960515812,3.0,1700.2,1699.1,4.11972]
[1743960516107,3.0,1699.3,1698.2,4.1219]
[1743960516396,4.12022,1699.0,1698.2,4.12188]
[1743960516701,0.95612195,1699.2,1698.3,4.12176]
[1743960516702,0.40612195,1699.2,1698.3,4.12176]
[1743960516883,0.40612195,1699.2,1699.1,4.11982]
[1743960517064,0.40612195,1699.5,1697.9,6.57040314]
[1743960517383,0.50889062,1699.4,1699.1,4.11967]
[1743960517589,0.50889062,1699.4,1698.3,4.12174]
[1743960517590,0.40612195,1699.3,1698.4,4.1214]
[1743960517790,0.40612195,1699.2,1698.8,4.12039]
[1743960517973,0.40612195,1699.2,1698.6,4.1208]
[1743960518151,0.40612195,1699.1,1698.9,4.12019]
[1743960518352,0.40612195,1699.1,1699.0,4.12007]
[1743960518587,0.40612195,1699.5,1699.4,4.1191]
[1743960518984,0.40612195,1699.9,1699.4,4.1191]
[1743960519179,0.40612195,1699.9,1699.2,4.11936]
[1743960519386,0.40612195,1699.8,1699.3,4.11921]
[1743960519691,0.40612195,1699.7,1699.3,4.11914]
[1743960520194,0.40612195,1699.7,1699.3,4.11923]
[1743960520395,7.684041,1700.0,1699.3,4.11923]
[1743960520396,0.40612195,1699.6,1699.3,4.11933]
[1743960520692,0.40612195,1699.6,1699.3,4.11929]
[1743960520879,1.5447,1700.1,1698.6,3.0]
[1743960521082,0.51182033,1700.0,1699.7,4.11819]
[1743960521392,0.4104176,1699.9,1699.5,4.11872]
[1743960521594,0.4104176,1699.9,1699.0,0.55]
[1743960521795,0.4104176,1699.9,1699.8,4.11813]
[1743960521954,4.06754,1700.1,1698.8,4.12055]
[1743960522160,0.55,1700.2,1698.7,4.12067]
[1743960522355,4.11872,1699.6,1698.9,4.12029]
[1743960522560,4.11841,1699.7,1698.9,4.12029]
[1743960522811,4.12007,1699.0,1697.6,4.12346]
[1743960522960,4.12265,1698.0,1697.2,4.12422]
[1743960523158,42.891,1698.4,1696.9,1.5842]
[1743960523392,3.0,1698.3,1697.2,4.12444]
[1743960523590,0.41101529,1698.2,1697.4,4.1238]
[1743960523777,4.12335,1697.7,1696.3,1.5842]
[1743960523979,0.55,1697.9,1696.3,1.5842]
[1743960524194,4.12283,1697.9,1697.2,4.12431]
[1743960524492,0.41101529,1697.8,1697.1,4.12458]
[1743960524697,4.12435,1697.3,1696.1,4.12709]
[1743960524885,4.12348,1697.6,1696.0,0.005]
[1743960524886,4.12565,1696.7,1696.0,0.005]
[1743960525193,3.03534511,1697.1,1696.2,4.12674]
[1743960525398,0.03534511,1697.1,1696.6,4.12565]
[1743960525611,0.03534511,1697.1,1696.8,4.12539]
[1743960525824,0.03534511,1697.1,1696.7,4.12544]
[1743960525966,0.03534511,1697.1,1696.9,4.12502]
[1743960526161,0.03534511,1697.1,1697.0,4.12492]
[1743960527033,0.03534511,1697.1,1696.9,4.12502]
[1743960527232,0.03534511,1697.1,1697.0,4.12492]
[1743960527606,0.03534511,1697.1,1696.5,4.12612]
[1743960527607,4.1255,1696.8,1695.7,1.5842]
[1743960527797,6.05685,1696.8,1696.0,4.13223]
[1743960528303,4.12565,1696.7,1696.0,0.005]
[1743960528508,4.5188,1696.8,1696.1,4.12694]
[1743960528827,42.39734511,1697.1,1696.0,0.005]
[1743960529026,0.03534511,1697.1,1696.8,4.12525]
[1743960529227,0.03534511,1697.1,1696.3,4.12644]
[1743960529427,0.03534511,1697.1,1696.7,4.12551]
[1743960529733,0.03534511,1697.1,1696.6,4.12589]
[1743960529897,0.03534511,1697.1,1696.9,4.12505]
[1743960530103,0.03534511,1697.1,1696.7,4.12543]
[1743960530415,0.0176745,1697.1,1696.3,4.12647]
[1743960530619,0.0176745,1697.1,1696.6,4.12573]
[1743960530823,0.0176745,1697.1,1696.4,4.12637]
[1743960531045,0.0176745,1697.1,1696.8,4.1254]
[1743960531229,1.5188,1697.3,1696.7,4.12563]
[1743960531410,42.375,1697.7,1696.4,4.12638]
[1743960531602,42.375,1697.7,1697.1,4.12448]
[1743960532252,42.375,1697.7,1696.9,4.12501]
[1743960532402,4.1237,1697.6,1696.8,4.12522]
[1743960532737,46.49825,1697.7,1697.0,4.1249]
[1743960532951,4.12358,1697.6,1696.9,4.12516]
[1743960533103,1.6098,1697.5,1696.1,4.12694]
[1743960533300,4.12576,1696.7,1696.0,4.13231]
[1743960533525,0.55,1697.2,1696.0,0.005]
[1743960533727,4.12545,1696.8,1696.1,4.12696]
[1743960534137,4.12517,1696.9,1696.1,4.12696]
[1743960534334,3.0,1696.8,1696.2,4.12685]
[1743960534524,3.825009,1696.9,1696.2,4.1267]
[1743960534731,0.825009,1696.9,1696.1,4.12711]
[1743960534932,4.12484,1697.1,1696.4,4.12633]
[1743960535140,4.12541,1696.8,1696.2,4.12671]
[1743960535463,4.6098,1697.5,1696.0,0.005]
[1743960535630,3.0,1696.9,1696.2,4.12674]
[1743960535826,6.1650877,1697.5,1696.4,4.12622]
[1743960536026,6.1650877,1697.5,1696.7,4.12553]
[1743960536027,1.6098,1697.5,1696.7,4.12553]
[1743960536228,1.6098,1697.5,1696.0,0.005]
[1743960536229,3.0,1697.2,1696.0,0.005]
[1743960536515,4.1248,1697.1,1696.3,4.12648]
[1743960536733,4.12562,1696.8,1696.1,4.12692]
[1743960537024,7.5375,1697.0,1695.6,5.46434181]
[1743960537255,3.0,1697.1,1696.5,4.12598]
[1743960537581,4.12494,1697.0,1696.3,4.1265]
[1743960537745,4.12494,1697.0,1696.3,4.12647]
[1743960538055,1.124973,1697.0,1696.7,4.12556]
[1743960538265,1.6098,1697.5,1696.1,4.12711]
[1743960538441,1.6098,1697.5,1695.9,3.0]
[1743960538442,1.6098,1697.5,1696.2,4.12687]
[1743960538751,1.6098,1697.5,1696.7,4.12563]
[1743960538976,5.66621528,1697.7,1697.6,4.12346]
[1743960539139,1.5578,1698.7,1697.5,0.05890696]
[1743960539327,1.5578,1698.7,1698.1,4.12209]
[1743960539525,3.2842952,1699.2,1698.8,4.12044]
[1743960539837,1.5578,1699.9,1698.6,0.05887129]
[1743960540063,1.5578,1699.9,1699.1,4.11977]
[1743960540269,1.5578,1699.9,1699.1,4.11965]
[1743960540570,1.5578,1699.9,1698.7,4.12079]
[1743960540869,1.5578,1699.9,1699.1,4.1197]
[1743960541041,5.67584,1699.9,1699.1,4.1197]
[1743960541235,5.67584,1699.9,1698.4,4.12152]
[1743960541236,1.5578,1699.9,1698.5,4.12123]
[1743960541453,4.11861,1699.7,1698.9,4.1203]
[1743960541674,4.11817,1699.8,1698.9,4.12025]
[1743960541847,0.411817,1699.7,1698.9,4.12025]
[1743960542042,4.11813,1699.8,1699.0,4.12002]
[1743960542377,4.1184,1699.7,1698.9,4.1203]
[1743960542546,4.11926,1699.4,1698.6,8.24184]
[1743960542751,4.11948,1699.3,1698.5,4.12111]
[1743960542953,4.11997,1699.1,1697.8,1.5851]
[1743960543264,4.1205,1698.9,1698.2,4.12197]
[1743960543453,0.55,1699.8,1697.8,1.5851]
[1743960543639,4.11842,1699.7,1698.9,4.1201]
[1743960543839,0.4071514,1699.6,1699.1,4.11981]
[1743960544143,0.4071514,1699.6,1699.1,4.11967]
[1743960544345,0.4071514,1699.6,1699.0,4.11993]
[1743960544676,5.67571,1699.9,1699.2,4.11936]
[1743960545253,0.4077749,1699.8,1698.8,1.5851]
[1743960545454,0.4077749,1699.8,1699.3,4.11933]
[1743960545656,0.4077749,1699.8,1699.5,4.11863]
[1743960545981,46.50315,1700.3,1699.6,4.11856]
[1743960546151,3.78236253,1700.4,1699.7,4.11816]
[1743960546359,4.11703,1700.3,1699.0,4.12007]
[1743960546557,0.40768406,1700.3,1699.6,4.11845]
[1743960546861,0.40768406,1700.3,1699.7,8.23648]
[1743960547066,7.89909253,1700.4,1699.7,8.23648]
[1743960547374,3.78236253,1700.4,1699.8,4.11811]
[1743960547573,3.78236253,1700.4,1699.1,3.0]
[1743960547752,4.11692,1700.3,1699.0,4.12007]
[1743960547955,4.11692,1700.3,1698.8,4.5851]
[1743960547956,4.11855,1699.7,1698.9,4.12009]
[1743960548155,3.0,1700.2,1698.8,1.5851]
[1743960548156,4.52471374,1700.2,1698.8,1.5851]
[1743960548382,0.40741374,1700.2,1698.9,4.12031]
[1743960548583,0.55,1700.2,1699.0,4.11991]
[1743960548865,0.55,1700.2,1699.1,4.11959]
[1743960548866,4.11803,1699.9,1699.1,4.11959]
[1743960549067,4.11823,1699.8,1699.1,4.11959]
[1743960549250,4.11823,1699.8,1698.8,4.12052]
[1743960549251,4.11896,1699.5,1698.8,4.12052]
[1743960549450,4.11896,1699.5,1698.6,4.12082]
[1743960549451,4.1195,1699.3,1698.6,4.12082]
[1743960549650,1.5578,1699.5,1698.9,4.12028]
[1743960549651,1.5078,1699.5,1698.9,4.12028]
[1743960549850,1.5078,1699.5,1698.3,1.5851]
[1743960549851,1.5078,1699.5,1698.3,4.12153]
[1743960550092,4.12009,1699.0,1698.3,4.12153]
[1743960550262,4.11983,1699.1,1698.4,4.12152]
[1743960550462,7.5264677,1699.4,1698.7,4.12068]
[1743960550682,4.11951,1699.3,1698.6,4.12096]
[1743960550867,0.4072677,1699.3,1697.8,5.70803]
[1743960551054,0.4072677,1699.3,1698.1,3.0]
[1743960551401,1.5078,1699.5,1698.3,4.12168]
[1743960551598,4.11954,1699.3,1698.2,4.12201]
[1743960551765,4.1197,1699.2,1698.5,4.12124]
[1743960551970,4.11996,1699.1,1698.4,4.12151]
[1743960552181,4.12009,1699.0,1698.3,8.24336]
[1743960552370,4.12059,1698.8,1698.1,8.24411]
[1743960552695,4.12145,1698.5,1697.8,4.12297]
[1743960552864,4.12105,1698.6,1697.9,4.12261]
[1743960553069,4.1214,1698.5,1697.8,8.24581]
[1743960553250,4.12095,1698.7,1697.5,4.12367]
[1743960553454,4.12131,1698.5,1697.9,4.12273]
[1743960553655,4.12131,1698.5,1697.3,5.65234]
[1743960553656,4.12078,1698.8,1697.6,4.12345]
[1743960553858,45.368,1699.0,1698.4,4.12148]
[1743960554052,46.48658,1699.7,1698.8,4.12044]
[1743960554286,4.11766,1700.0,1699.2,4.11945]
[1743960554490,4.11847,1699.7,1698.3,4.12172]
[1743960554704,4.11874,1699.6,1698.9,4.12019]
[1743960554904,4.11829,1699.8,1699.0,4.12006]
[1743960555202,1.5474,1700.0,1698.9,4.12007]
[1743960555357,6.06758223,1699.9,1699.0,0.05884769]
[1743960555556,6.06758223,1699.9,1699.3,4.1193]
[1743960555860,4.11828,1699.8,1699.0,4.12002]
[1743960556062,4.11896,1699.5,1698.8,8.24089]
[1743960556324,4.11921,1699.4,1698.7,4.12069]
[1743960556472,4.11896,1699.5,1698.8,4.1792684]
[1743960556657,4.11847,1699.7,1698.9,4.12021]
[1743960556863,8.23792,1699.5,1698.8,4.12055]
[1743960557098,0.711847,1699.7,1698.4,4.12136]
[1743960557304,4.12095,1698.7,1698.0,0.005]
[1743960557506,4.12007,1699.0,1698.0,0.005]
[1743960557507,4.12167,1698.4,1698.0,0.005]
[1743960558171,4.12082,1698.7,1698.0,4.12739]
[1743960558497,4.532447,1698.9,1698.0,4.12732]
[1743960558799,3.0,1699.0,1698.2,4.122]
[1743960559101,4.12104,1698.6,1698.0,0.005]
[1743960559275,4.12112,1698.6,1698.0,0.005]
[1743960559471,0.412112,1698.6,1698.0,0.005]
[1743960559691,8.24393,1698.3,1698.0,0.005]
[1743960559887,4.12205,1698.2,1698.0,0.005]
[1743960560201,4.12225,1698.1,1698.0,0.005]
[1743960560398,7.67225,1698.1,1698.0,0.005]
[1743960560562,4.1242,1697.3,1696.7,4.12555]
[1743960560761,4.1242,1697.3,1696.6,4.12571]
[1743960560999,4.12392,1697.5,1696.3,1.5268]
[1743960561187,4.835754,1697.7,1697.0,4.12475]
[1743960561385,0.1271,1698.0,1696.5,11.31665389]
[1743960561588,0.1271,1698.0,1697.1,4.12449]
[1743960561778,4.12358,1697.6,1696.9,4.125]
[1743960561972,3.40844794,1697.9,1696.4,4.12624]
[1743960562177,4.12385,1697.5,1696.8,4.1253]
[1743960562363,4.12351,1697.6,1696.9,4.12493]
[1743960562571,4.53156794,1697.8,1697.1,8.24912]
[1743960562899,4.53156794,1697.8,1697.1,4.12455]
[1743960563103,8.24632,1697.8,1697.1,4.12455]
[1743960563303,3.1271,1698.0,1697.3,4.12402]
[1743960563464,0.40881819,1697.9,1697.3,4.12402]
[1743960563665,0.40881819,1697.9,1696.8,11.31591389]
[1743960563867,0.40881819,1697.9,1697.3,4.12406]
[1743960563868,4.53156819,1697.9,1697.3,4.12406]
[1743960564071,4.53156819,1697.9,1697.2,4.12444]
[1743960564264,0.1271,1698.0,1696.9,4.12516]
[1743960564465,0.1271,1698.0,1697.5,8.2474]
[1743960564708,46.48901,1698.2,1696.8,11.32210528]
[1743960564709,46.48919,1698.2,1697.1,4.12448]
[1743960564882,4.12285,1697.9,1697.2,4.12432]
[1743960565094,4.53222505,1697.8,1697.2,4.12432]
[1743960565281,0.40922505,1697.8,1696.9,4.12516]
[1743960565474,0.40922505,1697.8,1697.5,8.2472]
[1743960565670,0.40922505,1697.8,1697.5,4.1236]
[1743960565876,4.12228,1698.1,1697.5,4.1236]
[1743960566138,46.48918,1698.2,1697.5,4.1236]
[1743960566304,0.40991394,1698.1,1697.3,4.12419]
[1743960566520,0.40991394,1698.1,1697.6,4.12329]
[1743960566675,0.40991394,1698.1,1697.7,4.1232]
[1743960566869,5.68005,1698.4,1697.7,4.1232]
[1743960567071,4.12187,1698.3,1697.6,4.12329]
[1743960567375,4.53247706,1698.2,1697.4,4.12383]
[1743960567642,4.12259,1698.0,1697.4,4.12383]
[1743960567779,8.2453,1698.0,1697.3,4.12418]
[1743960568116,0.41045706,1698.2,1697.6,4.12339]
[1743960568117,4.12201,1698.2,1697.6,4.12339]
[1743960568285,0.4690027,1698.2,1696.8,4.12532]
[1743960568489,1.5583,1697.8,1696.6,4.12589]
[1743960568687,4.12481,1697.1,1696.2,1.5268]
[1743960568892,4.12481,1697.1,1696.5,4.12611]
[1743960569215,4.12503,1697.0,1696.4,4.12627]
[1743960569376,4.12497,1697.0,1696.4,4.12627]
[1743960569577,4.12563,1696.8,1695.4,8.71731389]
[1743960569817,4.1247,1697.1,1696.4,4.12615]
[1743960569984,4.12493,1697.0,1696.3,4.12661]
[1743960570188,4.12589,1696.6,1695.9,4.12744]
[1743960570519,3.412493,1696.9,1695.4,1.5268]
[1743960570679,4.12676,1696.3,1695.6,8.25644]
[1743960570874,4.12803,1695.8,1695.1,8.25898]
[1743960571118,0.412676,1696.2,1695.1,4.12954]
[1743960571278,3.0,1696.3,1695.1,4.12954]
[1743960571490,4.1271,1696.2,1695.5,4.12844]
[1743960571696,4.1271,1696.2,1695.4,4.12881]
[1743960571928,4.12712,1696.1,1695.4,4.12881]
[1743960572105,3.0,1696.2,1695.6,4.1282]
[1743960572311,4.12711,1696.1,1695.4,4.12879]
[1743960572510,5.68465,1696.5,1695.5,0.05897183]
[1743960572817,5.68465,1696.5,1695.0,7.12956]
[1743960572818,4.12738,1696.0,1695.3,4.12893]
[1743960573145,4.12785,1695.8,1695.1,4.12941]
[1743960573437,8.25496,1696.0,1695.2,4.12909]
[1743960573639,4.12763,1695.9,1695.2,8.25828]
[1743960573791,4.12676,1696.3,1695.3,0.05898257]
[1743960573992,4.12676,1696.3,1695.6,4.12818]
[1743960574297,10.12372,1697.5,1696.4,4.12619]
[1743960574529,4.12401,1697.4,1696.7,4.12544]
[1743960574690,7.68941403,1697.8,1696.6,4.12588]
[1743960574691,4.12424,1697.3,1696.6,4.12588]
[1743960575035,4.12492,1697.0,1696.3,4.12643]
[1743960575343,0.412424,1697.2,1696.1,4.12698]
[1743960575499,4.1253,1696.9,1696.2,4.12676]
[1743960575697,4.12551,1696.8,1696.1,4.12698]
[1743960575907,4.1253,1696.9,1696.2,4.12671]
[1743960576112,4.12562,1696.8,1696.0,4.1273]
[1743960576337,4.12601,1696.6,1695.9,4.12759]
[1743960576493,4.12601,1696.6,1695.8,5.63623]
[1743960576494,4.12643,1696.4,1695.8,4.12783]
[1743960576693,4.12701,1696.2,1695.3,1.5066]
[1743960576901,4.12712,1696.1,1695.5,4.12854]
[1743960577098,4.12722,1696.1,1695.4,4.1287]
[1743960577529,4.12722,1696.1,1695.5,4.12855]
[1743960577729,4.12705,1696.2,1695.4,4.12869]
[1743960577935,3.412601,1696.6,1695.9,4.12747]
[1743960578136,9.78576635,1696.7,1696.0,4.12724]
[1743960578542,4.12592,1696.6,1695.7,4.12799]
[1743960578701,9.78575635,1696.7,1696.0,4.1272]
[1743960578896,5.65991635,1696.7,1696.1,4.12697]
[1743960579553,5.65991635,1696.7,1696.2,4.12668]
[1743960579842,5.65991635,1696.7,1696.1,4.1271]
[1743960580041,5.65991635,1696.7,1695.5,4.12857]
[1743960580042,5.65991635,1696.7,1696.2,4.12666]
[1743960580341,5.65991635,1697.0,1696.3,0.05894839]
[1743960580539,4.1252,1696.9,1696.2,4.12682]
[1743960580748,5.65991635,1697.0,1696.5,4.1259]
[1743960581051,5.65991635,1697.0,1696.9,4.12516]
[1743960581604,7.19051389,1698.8,1697.3,4.12419]
[1743960581899,6.0,1699.2,1697.6,4.12346]
[1743960581900,1.5156,1698.5,1697.6,4.12346]
[1743960582209,1.5156,1698.5,1697.4,7.19051389]
[1743960582210,1.5156,1698.5,1697.9,4.12273]
[1743960582535,1.5156,1698.5,1698.0,4.12248]
[1743960582733,1.5156,1698.5,1697.9,4.12259]
[1743960583049,1.5156,1698.5,1697.6,8.24663]
[1743960583050,4.12177,1698.3,1697.6,8.24663]
[1743960583210,0.412177,1698.2,1697.6,4.12333]
[1743960583405,4.12195,1698.3,1697.6,8.24666]
[1743960583606,4.12393,1697.5,1696.5,1.5066]
[1743960583838,4.12339,1697.7,1697.0,4.12488]
[1743960584154,4.12363,1697.6,1696.7,4.12554]
[1743960584331,4.12343,1697.7,1696.9,4.125]
[1743960584652,8.24731,1697.6,1696.9,4.125]
[1743960585002,0.712343,1697.7,1696.8,4.12541]
[1743960585347,7.123,1697.8,1697.1,4.1246]
[1743960585649,7.123,1697.8,1697.1,4.12457]
[1743960585650,7.12298,1697.8,1697.1,4.12457]
[1743960586001,48.05534,1697.9,1697.2,4.12437]
[1743960586201,4.12201,1698.2,1697.5,4.12349]
[1743960586477,4.12203,1698.2,1697.5,4.12368]
[1743960586654,4.12201,1698.2,1697.0,4.12492]
[1743960586950,4.12229,1698.1,1697.5,4.12359]
[1743960587252,4.12237,1698.1,1697.4,4.12382]
[1743960587779,4.12244,1698.1,1697.1,4.12461]
[1743960587955,4.12333,1697.7,1696.5,8.69711389]
[1743960588244,4.1231,1697.8,1696.6,4.12586]
[1743960588444,4.12262,1698.0,1697.2,4.12442]
[1743960588607,4.12262,1698.0,1697.3,4.12401]